fUSD/lending_fUSD_20260505
["ID","MTS","AMOUNT","RATE_DAILY","PERIOD"]
[421624040,1777987628000,-200.0,0.00021265,2]
[421624041,1777987628000,-200.0,0.00021265,2]
[421624042,1777987628000,-200.0,0.00021627,2]
[421624044,1777987628000,-213.06125945,0.0002229,2]
[421624045,1777987628000,-153.99,0.00023948,2]
[421624046,1777987628000,-153.99,0.0002579,2]
[421624048,1777987628000,-153.99,0.00029474,2]
[421624047,1777987628000,-153.99,0.00027632,2]
[421624049,1777987628000,-161.0,0.00031265,30]
[421624050,1777987628000,-153.99,0.00031316,2]
[421624052,1777987628000,-334.31863752,0.00031999,3]
[421624051,1777987628000,-500.0,0.00031452,2]
[421624043,1777987628000,-153.99,0.00022106,2]
[421624053,1777987645000,-286.89,0.00021627,2]
[421624054,1777987649000,-460.68136248,0.00031999,3]
[421624056,1777987649000,-1579.065242,0.00032833,2]
[421624057,1777987649000,-129.37191962,0.00032998,60]
[421624055,1777987649000,-195.85331406,0.00032,120]
[421624058,1777987653000,-319.35887478,0.00032998,60]
[421624059,1777987657000,162.48,0.00024658,2]
[421624060,1777987693000,214.70585278,0.000245,2]
[421624061,1777987721000,163.17,0.00024658,2]
[421624062,1777987736000,150.0,0.0002499,2]
[421624064,1777987813000,10000.01,0.00012,2]
[421624063,1777987813000,5024.75414722,0.00012,2]
[421624065,1777987813000,10000.01,0.00012,2]
[421624067,1777987813000,10000.01,0.00012,2]
[421624068,1777987813000,10000.01,0.00012,2]
[421624069,1777987813000,51330.27496105,0.00012,2]
[421624066,1777987813000,10000.01,0.00012,2]
[421624095,1777987831000,-150.0,0.00035605,7]
[421624096,1777987831000,-263.66386118,0.00035605,7]
[421624091,1777987831000,-1000.0,0.00034999,2]
[421624087,1777987831000,-153.99,0.00033158,2]
[421624092,1777987831000,-11449.15999258,0.00035,5]
[421624098,1777987831000,-150.0,0.00035605,7]
[421624088,1777987831000,-841.89,0.00033996,2]
[421624094,1777987831000,-150.0,0.00035605,30]
[421624097,1777987831000,-150.0,0.00035605,7]
[421624089,1777987831000,-1253.31,0.00034936,2]
[421624090,1777987831000,-169.32,0.00034962,30]
[421624086,1777987831000,-2948.69,0.00032999,60]
[421624081,1777987831000,-408.0,0.000318,2]
[421624084,1777987831000,-5000.0,0.00032997,60]
[421624082,1777987831000,-10327.59549206,0.00032,120]
[421624085,1777987831000,-4551.2692056,0.00032998,60]
[421624080,1777987831000,-406.0,0.000318,2]
[421624093,1777987831000,-153.99,0.00035001,2]
[421624100,1777987831000,-150.0,0.00036265,7]
[421624083,1777987831000,-5000.0,0.00032996,60]
[421624110,1777987831000,-603.83,0.00038034,30]
[421624099,1777987831000,-150.0,0.00035605,7]
[421624117,1777987831000,-841.369,0.00038493,51]
[421624114,1777987831000,-150.6677,0.00038281,2]
[421624115,1777987831000,-229.4,0.00038315,120]
[421624116,1777987831000,-348.96025971,0.00038493,2]
[421624118,1777987831000,-1029.41631564,0.00038741,2]
[421624119,1777987831000,-19375.69,0.00038767,2]
[421624112,1777987831000,-500.0,0.00038048,21]
[421624120,1777987831000,-177.37,0.0003879,10]
[421624113,1777987831000,-150.0,0.00038243,7]
[421624103,1777987831000,-150.0,0.00036924,7]
[421624102,1777987831000,-251.93,0.00036858,120]
[421624101,1777987831000,-153.99,0.00036843,2]
[421624104,1777987831000,-4685.30481988,0.00037,3]
[421624107,1777987831000,-4352.57775086,0.00037686,2]
[421624106,1777987831000,-150.0,0.00037584,7]
[421624105,1777987831000,-150.0,0.00037584,7]
[421624109,1777987831000,-301.9417159,0.00038,2]
[421624111,1777987831000,-500.0,0.00038048,21]
[421624108,1777987831000,-485.728556,0.000377,2]
[421624174,1777987832000,-500.0,0.00038899,2]
[421624163,1777987832000,-500.0,0.00038899,2]
[421624162,1777987832000,-500.0,0.00038899,2]
[421624159,1777987832000,-1502.82,0.00038899,2]
[421624155,1777987832000,-1502.82,0.00038899,2]
[421624152,1777987832000,-500.0,0.00038899,2]
[421624158,1777987832000,-1502.82,0.00038899,2]
[421624151,1777987832000,-500.0,0.00038899,2]
[421624157,1777987832000,-1502.82,0.00038899,2]
[421624153,1777987832000,-500.0,0.00038899,2]
[421624168,1777987832000,-500.0,0.00038899,2]
[421624156,1777987832000,-1502.82,0.00038899,2]
[421624167,1777987832000,-500.0,0.00038899,2]
[421624176,1777987832000,-508.63048737,0.00038899,2]
[421624166,1777987832000,-500.0,0.00038899,2]
[421624165,1777987832000,-500.0,0.00038899,2]
[421624173,1777987832000,-295.44404529,0.00038899,2]
[421624171,1777987832000,-500.0,0.00038899,2]
[421624172,1777987832000,-500.0,0.00038899,2]
[421624169,1777987832000,-500.0,0.00038899,2]
[421624170,1777987832000,-500.0,0.00038899,2]
[421624175,1777987832000,-500.0,0.00038899,2]
[421624149,1777987832000,-500.0,0.00038899,2]
[421624186,1777987832000,-500.0,0.00038899,2]
[421624177,1777987832000,-197.464237,0.00038899,2]
[421624178,1777987832000,-500.0,0.00038899,2]
[421624183,1777987832000,-283.95443166,0.00038899,2]
[421624164,1777987832000,-500.0,0.00038899,2]
[421624150,1777987832000,-500.0,0.00038899,2]
[421624140,1777987832000,-500.0,0.00038899,2]
[421624160,1777987832000,-1502.82,0.00038899,2]
[421624179,1777987832000,-500.0,0.00038899,2]
[421624122,1777987832000,-886.88,0.0003879,10]
[421624123,1777987832000,-3050.91924644,0.00038799,2]
[421624136,1777987832000,-500.0,0.00038899,2]
[421624128,1777987832000,-2500.0,0.000388,2]
[421624137,1777987832000,-583.90549215,0.00038899,2]
[421624131,1777987832000,-1968.61150794,0.00038802,2]
[421624133,1777987832000,-863.12648232,0.0003889,2]
[421624126,1777987832000,-4218.3821,0.000388,2]
[421624124,1777987832000,-176.77153288,0.000388,2]
[421624135,1777987832000,-500.0,0.00038899,2]
[421624125,1777987832000,-5000.0,0.000388,2]
[421624130,1777987832000,-223.93935622,0.00038802,2]
[421624129,1777987832000,-162.4746708,0.00038802,2]
[421624132,1777987832000,-3574.0,0.00038874,2]
[421624127,1777987832000,-30739.0892,0.000388,2]
[421624134,1777987832000,-286.65485468,0.00038899,2]
[421624138,1777987832000,-500.0,0.00038899,2]
[421624142,1777987832000,-500.0,0.00038899,2]
[421624147,1777987832000,-500.0,0.00038899,2]
[421624141,1777987832000,-500.0,0.00038899,2]
[421624145,1777987832000,-500.0,0.00038899,2]
[421624139,1777987832000,-500.0,0.00038899,2]
[421624143,1777987832000,-500.0,0.00038899,2]
[421624146,1777987832000,-500.0,0.00038899,2]
[421624148,1777987832000,-499.84927478,0.00038899,2]
[421624144,1777987832000,-500.0,0.00038899,2]
[421624161,1777987832000,-500.0,0.00038899,2]
[421624181,1777987832000,-500.0,0.00038899,2]
[421624154,1777987832000,-500.0,0.00038899,2]
[421624184,1777987832000,-500.0,0.00038899,2]
[421624213,1777987832000,-1302.29,0.00038899,2]
[421624216,1777987832000,-6578.07,0.00038899,2]
[421624217,1777987832000,-500.0,0.00038899,2]
[421624219,1777987832000,-500.0,0.00038899,2]
[421624222,1777987832000,-6578.07,0.00038899,2]
[421624218,1777987832000,-6578.07,0.00038899,2]
[421624221,1777987832000,-485.79756341,0.00038899,2]
[421624220,1777987832000,-6578.07,0.00038899,2]
[421624225,1777987832000,-500.0,0.00038899,2]
[421624235,1777987832000,-500.0,0.00038899,2]
[421624224,1777987832000,-6578.07,0.00038899,2]
[421624236,1777987832000,-500.0,0.00038899,2]
[421624226,1777987832000,-500.0,0.00038899,2]
[421624223,1777987832000,-6578.07,0.00038899,2]
[421624232,1777987832000,-500.0,0.00038899,2]
[421624227,1777987832000,-500.0,0.00038899,2]
[421624228,1777987832000,-500.0,0.00038899,2]
[421624231,1777987832000,-500.0,0.00038899,2]
[421624229,1777987832000,-500.0,0.00038899,2]
[421624234,1777987832000,-500.0,0.00038899,2]
[421624233,1777987832000,-345.79645664,0.00038899,2]
[421624237,1777987832000,-500.0,0.00038899,2]
[421624238,1777987832000,-500.0,0.00038899,2]
[421624239,1777987832000,-500.0,0.00038899,2]
[421624243,1777987832000,-582.1437793,0.00038899,2]
[421624240,1777987832000,-500.0,0.00038899,2]
[421624241,1777987832000,-500.0,0.00038899,2]
[421624180,1777987832000,-500.0,0.00038899,2]
[421624230,1777987832000,-500.0,0.00038899,2]
[421624215,1777987832000,-500.0,0.00038899,2]
[421624244,1777987832000,-500.0,0.00038899,2]
[421624242,1777987832000,-500.0,0.00038899,2]
[421624214,1777987832000,-1302.29,0.00038899,2]
[421624185,1777987832000,-500.0,0.00038899,2]
[421624182,1777987832000,-500.0,0.00038899,2]
[421624187,1777987832000,-500.0,0.00038899,2]
[421624198,1777987832000,-500.0,0.00038899,2]
[421624199,1777987832000,-500.0,0.00038899,2]
[421624189,1777987832000,-500.0,0.00038899,2]
[421624190,1777987832000,-500.0,0.00038899,2]
[421624191,1777987832000,-500.0,0.00038899,2]
[421624193,1777987832000,-500.0,0.00038899,2]
[421624192,1777987832000,-500.0,0.00038899,2]
[421624195,1777987832000,-151.20747261,0.00038899,2]
[421624197,1777987832000,-500.0,0.00038899,2]
[421624196,1777987832000,-500.0,0.00038899,2]
[421624188,1777987832000,-500.0,0.00038899,2]
[421624201,1777987832000,-634.00654051,0.00038899,2]
[421624194,1777987832000,-500.0,0.00038899,2]
[421624207,1777987832000,-500.0,0.00038899,2]
[421624210,1777987832000,-605.25824949,0.00038899,2]
[421624208,1777987832000,-1302.29,0.00038899,2]
[421624205,1777987832000,-500.0,0.00038899,2]
[421624209,1777987832000,-1302.29,0.00038899,2]
[421624200,1777987832000,-581.38040859,0.00038899,2]
[421624204,1777987832000,-500.0,0.00038899,2]
[421624202,1777987832000,-500.0,0.00038899,2]
[421624203,1777987832000,-500.0,0.00038899,2]
[421624212,1777987832000,-1302.29,0.00038899,2]
[421624206,1777987832000,-500.0,0.00038899,2]
[421624211,1777987832000,-697.03175051,0.00038899,2]
[421624290,1777987833000,-500.0,0.00038899,2]
[421624274,1777987833000,-500.0,0.00038899,2]
[421624273,1777987833000,-152.41441699,0.00038899,2]
[421624280,1777987833000,-500.0,0.00038899,2]
[421624282,1777987833000,-500.0,0.00038899,2]
[421624278,1777987833000,-500.0,0.00038899,2]
[421624279,1777987833000,-500.0,0.00038899,2]
[421624283,1777987833000,-500.0,0.00038899,2]
[421624292,1777987833000,-500.0,0.00038899,2]
[421624275,1777987833000,-500.0,0.00038899,2]
[421624277,1777987833000,-500.0,0.00038899,2]
[421624289,1777987833000,-500.0,0.00038899,2]
[421624293,1777987833000,-564.44538157,0.00038899,2]
[421624284,1777987833000,-500.0,0.00038899,2]
[421624286,1777987833000,-500.0,0.00038899,2]
[421624288,1777987833000,-433.72142261,0.00038899,2]
[421624287,1777987833000,-500.0,0.00038899,2]
[421624285,1777987833000,-500.0,0.00038899,2]
[421624301,1777987833000,-575.92336569,0.00038899,2]
[421624296,1777987833000,-500.0,0.00038899,2]
[421624302,1777987833000,-2082.15,0.00038899,2]
[421624300,1777987833000,-563.28894036,0.00038899,2]
[421624276,1777987833000,-500.0,0.00038899,2]
[421624298,1777987833000,-500.0,0.00038899,2]
[421624291,1777987833000,-500.0,0.00038899,2]
[421624272,1777987833000,-500.0,0.00038899,2]
[421624256,1777987833000,-500.0,0.00038899,2]
[421624269,1777987833000,-500.0,0.00038899,2]
[421624299,1777987833000,-500.0,0.00038899,2]
[421624245,1777987833000,-500.0,0.00038899,2]
[421624247,1777987833000,-500.0,0.00038899,2]
[421624246,1777987833000,-299.67602487,0.00038899,2]
[421624248,1777987833000,-500.0,0.00038899,2]
[421624249,1777987833000,-500.0,0.00038899,2]
[421624250,1777987833000,-500.0,0.00038899,2]
[421624254,1777987833000,-500.0,0.00038899,2]
[421624251,1777987833000,-500.0,0.00038899,2]
[421624252,1777987833000,-500.0,0.00038899,2]
[421624255,1777987833000,-500.0,0.00038899,2]
[421624253,1777987833000,-500.0,0.00038899,2]
[421624257,1777987833000,-500.0,0.00038899,2]
[421624259,1777987833000,-500.0,0.00038899,2]
[421624258,1777987833000,-500.0,0.00038899,2]
[421624261,1777987833000,-325.61127052,0.00038899,2]
[421624271,1777987833000,-500.0,0.00038899,2]
[421624260,1777987833000,-325.91167521,0.00038899,2]
[421624262,1777987833000,-500.0,0.00038899,2]
[421624263,1777987833000,-500.0,0.00038899,2]
[421624266,1777987833000,-500.0,0.00038899,2]
[421624264,1777987833000,-500.0,0.00038899,2]
[421624265,1777987833000,-500.0,0.00038899,2]
[421624268,1777987833000,-500.0,0.00038899,2]
[421624267,1777987833000,-500.0,0.00038899,2]
[421624270,1777987833000,-500.0,0.00038899,2]
[421624294,1777987833000,-500.0,0.00038899,2]
[421624281,1777987833000,-345.90030198,0.00038899,2]
[421624303,1777987833000,-2082.15,0.00038899,2]
[421624333,1777987833000,-500.0,0.00038899,2]
[421624337,1777987833000,-500.0,0.00038899,2]
[421624336,1777987833000,-500.0,0.00038899,2]
[421624334,1777987833000,-500.0,0.00038899,2]
[421624330,1777987833000,-500.0,0.00038899,2]
[421624332,1777987833000,-247.20557105,0.00038899,2]
[421624331,1777987833000,-500.0,0.00038899,2]
[421624335,1777987833000,-500.0,0.00038899,2]
[421624340,1777987833000,-500.0,0.00038899,2]
[421624342,1777987833000,-500.0,0.00038899,2]
[421624341,1777987833000,-500.0,0.00038899,2]
[421624349,1777987833000,-500.0,0.00038899,2]
[421624343,1777987833000,-500.0,0.00038899,2]
[421624344,1777987833000,-500.0,0.00038899,2]
[421624345,1777987833000,-1044.86,0.00038899,2]
[421624348,1777987833000,-1044.86,0.00038899,2]
[421624346,1777987833000,-1044.86,0.00038899,2]
[421624347,1777987833000,-1044.86,0.00038899,2]
[421624352,1777987833000,-1044.86,0.00038899,2]
[421624351,1777987833000,-500.0,0.00038899,2]
[421624355,1777987833000,-500.0,0.00038899,2]
[421624353,1777987833000,-154.1078473,0.00038899,2]
[421624356,1777987833000,-500.0,0.00038899,2]
[421624354,1777987833000,-500.0,0.00038899,2]
[421624297,1777987833000,-500.0,0.00038899,2]
[421624338,1777987833000,-500.0,0.00038899,2]
[421624339,1777987833000,-500.0,0.00038899,2]
[421624350,1777987833000,-1044.86,0.00038899,2]
[421624329,1777987833000,-584.19,0.00038899,2]
[421624295,1777987833000,-500.0,0.00038899,2]
[421624328,1777987833000,-584.19,0.00038899,2]
[421624304,1777987833000,-2082.15,0.00038899,2]
[421624316,1777987833000,-500.0,0.00038899,2]
[421624306,1777987833000,-2082.15,0.00038899,2]
[421624312,1777987833000,-500.0,0.00038899,2]
[421624314,1777987833000,-500.0,0.00038899,2]
[421624310,1777987833000,-500.0,0.00038899,2]
[421624308,1777987833000,-500.0,0.00038899,2]
[421624305,1777987833000,-2082.15,0.00038899,2]
[421624307,1777987833000,-2082.15,0.00038899,2]
[421624309,1777987833000,-500.0,0.00038899,2]
[421624311,1777987833000,-500.0,0.00038899,2]
[421624313,1777987833000,-500.0,0.00038899,2]
[421624319,1777987833000,-154.90006119,0.00038899,2]
[421624318,1777987833000,-500.0,0.00038899,2]
[421624327,1777987833000,-584.19,0.00038899,2]
[421624317,1777987833000,-500.0,0.00038899,2]
[421624357,1777987833000,-500.0,0.00038899,2]
[421624325,1777987833000,-584.19,0.00038899,2]
[421624326,1777987833000,-584.19,0.00038899,2]
[421624320,1777987833000,-345.09993881,0.00038899,2]
[421624321,1777987833000,-500.0,0.00038899,2]
[421624323,1777987833000,-500.0,0.00038899,2]
[421624322,1777987833000,-500.0,0.00038899,2]
[421624324,1777987833000,-584.19,0.00038899,2]
[421624315,1777987833000,-500.0,0.00038899,2]
[421624385,1777987834000,-1418.77,0.00038899,2]
[421624388,1777987834000,-500.0,0.00038899,2]
[421624378,1777987834000,-500.0,0.00038899,2]
[421624374,1777987834000,-500.0,0.00038899,2]
[421624382,1777987834000,-1418.77,0.00038899,2]
[421624375,1777987834000,-500.0,0.00038899,2]
[421624381,1777987834000,-236.54501478,0.00038899,2]
[421624383,1777987834000,-1418.77,0.00038899,2]
[421624384,1777987834000,-1418.77,0.00038899,2]
[421624380,1777987834000,-500.0,0.00038899,2]
[421624386,1777987834000,-1418.77,0.00038899,2]
[421624376,1777987834000,-500.0,0.00038899,2]
[421624379,1777987834000,-500.0,0.00038899,2]
[421624377,1777987834000,-500.0,0.00038899,2]
[421624359,1777987834000,-534.99111469,0.00038899,2]
[421624369,1777987834000,-482.56987887,0.00038899,2]
[421624393,1777987834000,-500.0,0.00038899,2]
[421624361,1777987834000,-500.0,0.00038899,2]
[421624362,1777987834000,-500.0,0.00038899,2]
[421624360,1777987834000,-500.0,0.00038899,2]
[421624358,1777987834000,-500.0,0.00038899,2]
[421624364,1777987834000,-500.0,0.00038899,2]
[421624366,1777987834000,-500.0,0.00038899,2]
[421624372,1777987834000,-500.0,0.00038899,2]
[421624363,1777987834000,-500.0,0.00038899,2]
[421624365,1777987834000,-500.0,0.00038899,2]
[421624368,1777987834000,-500.0,0.00038899,2]
[421624367,1777987834000,-500.0,0.00038899,2]
[421624371,1777987834000,-500.0,0.00038899,2]
[421624370,1777987834000,-500.0,0.00038899,2]
[421624373,1777987834000,-500.0,0.00038899,2]
[421624389,1777987834000,-492.52,0.00038899,2]
[421624399,1777987834000,-500.0,0.00038899,2]
[421624391,1777987834000,-500.0,0.00038899,2]
[421624387,1777987834000,-1418.77,0.00038899,2]
[421624420,1777987834000,-538.03473045,0.00038899,2]
[421624421,1777987834000,-340.60220378,0.00038899,2]
[421624422,1777987834000,-5.63101183,0.00038899,2]
[421624418,1777987834000,-500.0,0.00038899,2]
[421624413,1777987834000,-500.0,0.00038899,2]
[421624415,1777987834000,-500.0,0.00038899,2]
[421624417,1777987834000,-500.0,0.00038899,2]
[421624419,1777987834000,-500.0,0.00038899,2]
[421624416,1777987834000,-500.0,0.00038899,2]
[421624412,1777987834000,-500.0,0.00038899,2]
[421624411,1777987834000,-481.21172977,0.00038899,2]
[421624409,1777987834000,-500.0,0.00038899,2]
[421624410,1777987834000,-500.0,0.00038899,2]
[421624405,1777987834000,-500.0,0.00038899,2]
[421624414,1777987834000,-500.0,0.00038899,2]
[421624404,1777987834000,-500.0,0.00038899,2]
[421624403,1777987834000,-500.0,0.00038899,2]
[421624392,1777987834000,-500.0,0.00038899,2]
[421624390,1777987834000,-500.0,0.00038899,2]
[421624395,1777987834000,-500.0,0.00038899,2]
[421624396,1777987834000,-554.71715675,0.00038899,2]
[421624401,1777987834000,-191.66210755,0.00038899,2]
[421624402,1777987834000,-500.0,0.00038899,2]
[421624394,1777987834000,-500.0,0.00038899,2]
[421624400,1777987834000,-500.0,0.00038899,2]
[421624397,1777987834000,-500.0,0.00038899,2]
[421624407,1777987834000,-500.0,0.00038899,2]
[421624408,1777987834000,-500.0,0.00038899,2]
[421624406,1777987834000,-500.0,0.00038899,2]
[421624398,1777987834000,-500.0,0.00038899,2]
[421624427,1777987838000,-524.0,0.000315,3]
[421624450,1777987842000,-3050.91924641,0.00038908,2]
[421624453,1777987842000,-335.3,0.00039,120]
[421624449,1777987842000,-150.0,0.00038902,7]
[421624445,1777987842000,-500.0,0.00038899,2]
[421624447,1777987842000,-152.0,0.00038899,2]
[421624466,1777987842000,-1253.31,0.00039302,2]
[421624456,1777987842000,-3050.91924641,0.00039017,2]
[421624457,1777987842000,-500.0,0.00039081,2]
[421624462,1777987842000,-3050.91924641,0.00039126,2]
[421624461,1777987842000,-383.602,0.0003912,2]
[421624459,1777987842000,-162.47467077,0.00039081,2]
[421624455,1777987842000,-1049.0,0.00039,2]
[421624463,1777987842000,-162.47467077,0.00039221,2]
[421624467,1777987842000,-3675.1121,0.00039303,2]
[421624448,1777987842000,-1500000.0,0.000389,2]
[421624458,1777987842000,-1418.77,0.00039081,2]
[421624446,1777987842000,-331.23895119,0.00038899,2]
[421624452,1777987842000,-3564.0,0.00038954,2]
[421624444,1777987842000,-500.0,0.00038899,2]
[421624443,1777987842000,-500.0,0.00038899,2]
[421624442,1777987842000,-500.0,0.00038899,2]
[421624439,1777987842000,-500.0,0.00038899,2]
[421624435,1777987842000,-5529.0,0.000322,5]
[421624441,1777987842000,-500.0,0.00038899,2]
[421624440,1777987842000,-300.86069836,0.00038899,2]
[421624437,1777987842000,-510.73979255,0.00038899,2]
[421624438,1777987842000,-500.0,0.00038899,2]
[421624436,1777987842000,-152.0,0.00036686,7]
[421624434,1777987842000,-117.3004087,0.000315,3]
[421624430,1777987842000,-3529.6995913,0.000315,3]
[421624451,1777987842000,-162.47467077,0.00038942,2]
[421624464,1777987842000,-3050.91924641,0.00039235,2]
[421624454,1777987842000,-229.4,0.00039,120]
[421624465,1777987842000,-1968.61150788,0.00039247,2]
[421624460,1777987842000,-5486.993,0.0003912,2]
[421624512,1777987842000,-1302.29,0.00039531,2]
[421624501,1777987842000,-500.0,0.00039531,2]
[421624496,1777987842000,-1502.82,0.00039531,2]
[421624508,1777987842000,-500.0,0.00039531,2]
[421624506,1777987842000,-500.0,0.00039531,2]
[421624504,1777987842000,-500.0,0.00039531,2]
[421624495,1777987842000,-1502.82,0.00039531,2]
[421624494,1777987842000,-500.0,0.00039531,2]
[421624493,1777987842000,-500.0,0.00039531,2]
[421624491,1777987842000,-500.0,0.00039531,2]
[421624490,1777987842000,-828.0,0.00039522,30]
[421624488,1777987842000,-957.0,0.00039522,30]
[421624492,1777987842000,-500.0,0.00039531,2]
[421624487,1777987842000,-162.47467077,0.00039501,2]
[421624510,1777987842000,-500.0,0.00039531,2]
[421624485,1777987842000,-344.59934272,0.000395,2]
[421624489,1777987842000,-767.0,0.00039522,30]
[421624468,1777987842000,-1906.6069,0.00039304,2]
[421624475,1777987842000,-223.93935621,0.00039351,2]
[421624471,1777987842000,-200.0,0.00039317,20]
[421624469,1777987842000,-2000.0,0.00039304,2]
[421624481,1777987842000,-14659.62455214,0.00039491,2]
[421624482,1777987842000,-262.61957481,0.00039491,2]
[421624473,1777987842000,-3050.91924641,0.00039344,2]
[421624484,1777987842000,-872045.52469466,0.000395,2]
[421624477,1777987842000,-162.47467077,0.00039361,2]
[421624498,1777987842000,-500.0,0.00039531,2]
[421624483,1777987842000,-1758.25431493,0.00039491,2]
[421624480,1777987842000,-166.86899781,0.00039491,2]
[421624479,1777987842000,-3050.91924641,0.00039453,2]
[421624486,1777987842000,-8033.39607436,0.000395,2]
[421624576,1777987843000,-1044.86,0.00039531,2]
[421624578,1777987843000,-1044.86,0.00039531,2]
[421624580,1777987843000,-1044.86,0.00039531,2]
[421624574,1777987843000,-255.71125714,0.00039531,2]
[421624569,1777987843000,-584.19,0.00039531,2]
[421624568,1777987843000,-584.19,0.00039531,2]
[421624572,1777987843000,-500.0,0.00039531,2]
[421624565,1777987843000,-500.0,0.00039531,2]
[421624586,1777987843000,-500.0,0.00039531,2]
[421624573,1777987843000,-500.0,0.00039531,2]
[421624567,1777987843000,-584.19,0.00039531,2]
[421624582,1777987843000,-500.0,0.00039531,2]
[421624614,1777987843000,-21992.6755058,0.00039532,2]
[421624588,1777987843000,-500.0,0.00039531,2]
[421624590,1777987843000,-1418.77,0.00039531,2]
[421624594,1777987843000,-500.0,0.00039531,2]
[421624592,1777987843000,-1418.77,0.00039531,2]
[421624596,1777987843000,-500.0,0.00039531,2]
[421624608,1777987843000,-10725.79019612,0.00039532,48]
[421624612,1777987843000,-3133.1273604,0.00039532,2]
[421624610,1777987843000,-546698.7678361,0.00039532,2]
[421624599,1777987843000,-500.0,0.00039531,2]
[421624601,1777987843000,-500.0,0.00039531,2]
[421624605,1777987843000,-297.31159362,0.00039531,2]
[421624564,1777987843000,-500.0,0.00039531,2]
[421624584,1777987843000,-500.0,0.00039531,2]
[421624571,1777987843000,-500.0,0.00039531,2]
[421624539,1777987843000,-500.0,0.00039531,2]
[421624570,1777987843000,-500.0,0.00039531,2]
[421624513,1777987843000,-1302.29,0.00039531,2]
[421624517,1777987843000,-6578.07,0.00039531,2]
[421624520,1777987843000,-6578.07,0.00039531,2]
[421624521,1777987843000,-500.0,0.00039531,2]
[421624524,1777987843000,-500.0,0.00039531,2]
[421624526,1777987843000,-500.0,0.00039531,2]
[421624528,1777987843000,-500.0,0.00039531,2]
[421624532,1777987843000,-500.0,0.00039531,2]
[421624534,1777987843000,-500.0,0.00039531,2]
[421624530,1777987843000,-500.0,0.00039531,2]
[421624537,1777987843000,-500.0,0.00039531,2]
[421624603,1777987843000,-500.0,0.00039531,2]
[421624560,1777987843000,-500.0,0.00039531,2]
[421624541,1777987843000,-500.0,0.00039531,2]
[421624548,1777987843000,-179.65134932,0.00039531,2]
[421624549,1777987843000,-500.0,0.00039531,2]
[421624550,1777987843000,-500.0,0.00039531,2]
[421624543,1777987843000,-500.0,0.00039531,2]
[421624547,1777987843000,-500.0,0.00039531,2]
[421624556,1777987843000,-2082.15,0.00039531,2]
[421624558,1777987843000,-2082.15,0.00039531,2]
[421624554,1777987843000,-2082.15,0.00039531,2]
[421624553,1777987843000,-500.0,0.00039531,2]
[421624551,1777987843000,-500.0,0.00039531,2]
[421624552,1777987843000,-500.0,0.00039531,2]
[421624562,1777987843000,-500.0,0.00039531,2]
[421624546,1777987843000,-500.0,0.00039531,2]
[421624616,1777987843000,-8347.3896152,0.00039532,2]
[421624515,1777987843000,-6578.07,0.00039531,2]
[421624619,1777987843000,-162.1350868,0.00039532,2]
[421624683,1777987843000,-500.0,0.00039586,2]
[421624687,1777987843000,-2082.15,0.00039586,2]